bitfinex/quotes_BTCUSD_20240803
["timestamp","ask_amount","ask_price","bid_price","bid_amount"]
[1722674288391,0.52232024,61667.0,61666.0,0.01442415]
[1722674288616,0.52232024,61667.0,61666.0,0.002]
[1722674288820,0.27907924,61667.0,61666.0,0.01442415]
[1722674288969,0.52232024,61667.0,61666.0,0.01442415]
[1722674290656,0.52232024,61667.0,61666.0,0.01342415]
[1722674290863,0.76556124,61667.0,61666.0,0.01342415]
[1722674291060,0.27907924,61667.0,61662.0,0.0601]
[1722674291437,0.52232024,61667.0,61666.0,0.001]
[1722674291644,0.52232024,61667.0,61666.0,0.002]
[1722674291825,0.52315024,61667.0,61666.0,0.001]
[1722674292279,0.27990924,61667.0,61666.0,0.002]
[1722674292495,0.27990924,61667.0,61666.0,0.001]
[1722674292496,0.52315024,61667.0,61666.0,0.001]
[1722674292696,0.52315024,61667.0,61666.0,0.01237347]
[1722674292889,0.52315024,61667.0,61666.0,0.001]
[1722674293101,0.52315024,61667.0,61666.0,0.01437347]
[1722674293311,0.52315024,61667.0,61666.0,0.002]
[1722674293580,0.52315024,61667.0,61666.0,0.001]
[1722674293788,0.52315024,61667.0,61666.0,0.01437347]
[1722674294175,0.15828924,61667.0,61666.0,0.01437347]
[1722674295255,0.27990924,61667.0,61666.0,0.01337347]
[1722674295662,0.27990924,61667.0,61666.0,0.01237347]
[1722674296080,0.27990924,61667.0,61663.0,0.121628]
[1722674296490,0.27990924,61667.0,61664.0,0.01237347]
[1722674296705,0.121623,61666.0,61664.0,0.01237347]
[1722674296921,0.27908324,61665.0,61664.0,0.01237347]
[1722674297148,0.121627,61664.0,61661.0,0.00019522]
[1722674297373,0.15745924,61663.0,61661.0,0.00019522]
[1722674297787,0.15745924,61663.0,61661.0,0.12182722]
[1722674298418,0.15745924,61663.0,61662.0,0.364891]
[1722674298625,0.15745924,61663.0,61662.0,0.608152]
[1722674300448,0.15745924,61663.0,61662.0,0.364891]
[1722674301444,0.15745924,61663.0,61662.0,0.608152]
[1722674304645,0.00083,61667.0,61666.0,0.685712]
[1722674304854,0.00083,61667.0,61666.0,0.928957]
[1722674305070,0.00083,61667.0,61666.0,0.992657]
[1722674306708,0.00083,61667.0,61666.0,1.002657]
[1722674306913,0.00083,61667.0,61666.0,1.102657]
[1722674308320,0.00083,61667.0,61666.0,1.11145403]
[1722674308510,0.00083,61667.0,61666.0,1.10145403]
[1722674308745,0.0664,61677.0,61666.0,0.49334203]
[1722674308945,0.23855924,61676.0,61673.0,0.121608]
[1722674309287,0.23855924,61676.0,61670.0,0.243228]
[1722674309466,0.23855924,61676.0,61672.0,0.121609]
[1722674309677,0.23855924,61676.0,61671.0,0.13038581]
[1722674309678,0.36016224,61676.0,61671.0,0.13038581]
[1722674309878,0.36016224,61676.0,61671.0,0.121612]
[1722674310082,0.121605,61675.0,61672.0,0.00877381]
[1722674310277,0.15745924,61674.0,61672.0,0.00877381]
[1722674310481,0.15745924,61674.0,61671.0,0.121613]
[1722674310934,0.15745924,61674.0,61672.0,0.0103482]
[1722674311409,0.15745924,61674.0,61672.0,0.0113482]
[1722674311650,0.15745924,61674.0,61672.0,0.1319582]
[1722674312859,0.15745924,61674.0,61672.0,0.1339582]
[1722674313844,0.15745924,61674.0,61672.0,0.0143482]
[1722674314082,0.364827,61673.0,61672.0,0.01277381]
[1722674314313,0.58728624,61673.0,61672.0,0.01277381]
[1722674314546,0.83050424,61673.0,61672.0,0.004]
[1722674315307,0.83050424,61673.0,61672.0,0.002]
[1722674315599,0.83050424,61673.0,61665.0,0.12319839]
[1722674315600,0.15745924,61673.0,61670.0,0.121613]
[1722674315848,0.15745924,61672.0,61671.0,0.121612]
[1722674316147,0.15745924,61672.0,61670.0,0.12318939]
[1722674318039,0.15745924,61672.0,61670.0,0.00157439]
[1722674318260,0.15745924,61672.0,61668.0,0.00157439]
[1722674318485,0.15745924,61672.0,61670.0,0.00157439]
[1722674322401,0.27907024,61672.0,61667.0,0.121619]
[1722674322619,0.27907024,61672.0,61668.0,0.12319239]
[1722674323238,0.27907024,61672.0,61669.0,0.00875127]
[1722674323479,0.27907024,61672.0,61670.0,0.00157439]
[1722674323801,0.15745924,61672.0,61670.0,0.00157439]
[1722674324040,0.15745924,61672.0,61671.0,0.00875127]
[1722674324288,0.15745924,61672.0,61670.0,0.121613]
[1722674324568,0.15745924,61672.0,61671.0,0.01032566]
[1722674324843,0.15745924,61672.0,61671.0,0.51739027]
[1722674325138,0.04934093,61681.0,61679.0,0.121596]
[1722674325411,0.04934093,61681.0,61679.0,0.265397]
[1722674325412,0.15828924,61680.0,61679.0,0.265397]
[1722674325664,0.15828924,61680.0,61679.0,0.508591]
[1722674327463,0.15785892,61680.0,61679.0,0.508591]
[1722674327767,0.15785892,61680.0,61679.0,0.510591]
[1722674328193,0.15785892,61680.0,61679.0,0.001]
[1722674328625,0.15785892,61680.0,61679.0,0.00357439]
[1722674328835,0.15785892,61680.0,61679.0,0.002]
[1722674329065,0.15785892,61680.0,61679.0,0.00357439]
[1722674329497,0.15785892,61680.0,61679.0,0.002]
[1722674329923,0.15785892,61680.0,61679.0,0.123597]
[1722674332055,0.15785892,61680.0,61679.0,0.002]
[1722674332300,0.15785892,61680.0,61679.0,0.123597]
[1722674332942,0.15785892,61680.0,61679.0,0.366791]
[1722674335973,0.15785892,61680.0,61679.0,0.365791]
[1722674336780,0.15785892,61680.0,61679.0,0.364791]
[1722674337110,0.15785892,61680.0,61679.0,0.609985]
[1722674338065,0.15785892,61680.0,61679.0,0.366791]
[1722674338284,0.15785892,61680.0,61679.0,0.37446794]
[1722674339743,0.15785892,61680.0,61679.0,0.75686194]
[1722674339744,0.00039968,61680.0,61679.0,0.75686194]
[1722674341131,0.00039968,61680.0,61679.0,0.75586194]
[1722674341541,0.00039968,61680.0,61679.0,0.75786194]
[1722674342358,0.00039968,61680.0,61679.0,1.00005594]
[1722674342560,0.00039968,61680.0,61679.0,1.00205594]
[1722674343593,0.00039968,61680.0,61679.0,1.50386314]
[1722674344001,0.045,61696.0,61695.0,0.121565]
[1722674344208,0.045,61696.0,61695.0,0.745827]
[1722674344421,0.045,61696.0,61695.0,0.9965465]
[1722674344635,0.045,61696.0,61695.0,1.0965465]
[1722674345260,0.045,61696.0,61695.0,1.1165465]
[1722674345467,0.045,61696.0,61695.0,1.1285465]
[1722674345676,0.045,61696.0,61695.0,1.1065465]
[1722674345878,0.045,61696.0,61695.0,1.1265465]
[1722674346085,0.045,61696.0,61695.0,1.49692074]
[1722674346286,0.045,61696.0,61695.0,1.50191812]
[1722674346494,0.045,61696.0,61695.0,1.49891812]
[1722674346705,0.045,61696.0,61695.0,1.50891812]
[1722674346930,0.045,61696.0,61695.0,1.52291812]
[1722674347136,0.045,61696.0,61695.0,1.49852774]
[1722674347348,0.045,61696.0,61695.0,1.51252774]
[1722674347553,0.045,61696.0,61695.0,1.3996775]
[1722674347967,0.045,61696.0,61695.0,1.52652896]
[1722674348177,0.045,61696.0,61695.0,1.3856775]
[1722674348386,0.03599945,61696.0,61695.0,1.3856775]
[1722674348592,0.00793977,61699.0,61698.0,0.882916]
[1722674348806,0.00914,61707.0,61706.0,0.502632]
[1722674349016,0.00914,61707.0,61706.0,0.998808]
[1722674349226,0.00914,61707.0,61706.0,1.098808]
[1722674349435,0.00914,61707.0,61706.0,1.10621303]
[1722674350274,0.00914,61707.0,61706.0,1.11521303]
[1722674350478,0.00914,61707.0,61706.0,1.10521303]
[1722674350889,0.00914,61707.0,61706.0,1.11521303]
[1722674351910,0.00914,61707.0,61706.0,1.10521303]
[1722674352116,0.00914,61707.0,61706.0,0.79962503]
[1722674352332,0.16659924,61707.0,61706.0,0.48103703]
[1722674352541,0.16659924,61707.0,61706.0,0.72412503]
[1722674353167,0.16659924,61707.0,61706.0,0.48103703]
[1722674354274,0.16659924,61707.0,61706.0,0.01640503]
[1722674354489,0.16659924,61707.0,61706.0,0.130544]
[1722674354902,0.16659924,61707.0,61706.0,0.13793844]
[1722674355662,0.16659924,61707.0,61706.0,0.01239444]
[1722674355663,0.28814124,61707.0,61706.0,0.01239444]
[1722674355869,0.53122524,61707.0,61706.0,0.00839444]
[1722674356087,0.67012524,61707.0,61706.0,0.002]
[1722674356504,0.42704224,61707.0,61700.0,0.1]
[1722674356725,0.15745924,61706.0,61702.0,0.121551]
[1722674357353,0.15745924,61706.0,61703.0,0.01182727]
[1722674357567,0.15745924,61706.0,61705.0,0.121546]
[1722674358212,0.15745924,61706.0,61705.0,0.01182727]
[1722674358631,0.15745924,61706.0,61705.0,0.121546]
[1722674358838,0.15745924,61706.0,61705.0,0.13337327]
[1722674359041,0.15745924,61706.0,61705.0,0.01182727]
[1722674359249,0.15745924,61706.0,61703.0,0.121549]
[1722674359567,0.15745924,61706.0,61705.0,0.01382727]
[1722674359761,0.15828924,61706.0,61705.0,0.002]
[1722674359965,0.15828924,61706.0,61705.0,0.01382727]
[1722674360190,0.15828924,61706.0,61705.0,0.002]
[1722674360390,0.15828924,61706.0,61703.0,0.121549]
[1722674360592,0.15828924,61706.0,61704.0,0.13341679]
[1722674361396,0.15828924,61706.0,61705.0,0.002]
[1722674361599,0.27983324,61706.0,61705.0,0.002]
[1722674361997,0.27983324,61706.0,61705.0,0.01386996]
[1722674362824,0.27983324,61706.0,61705.0,0.01186996]
[1722674363231,0.27983324,61706.0,61705.0,0.01386996]
[1722674363574,0.27983324,61706.0,61705.0,0.01186996]
[1722674363989,0.27983324,61706.0,61705.0,0.002]
[1722674364186,0.27983324,61706.0,61705.0,0.01286996]
[1722674364414,0.27983324,61706.0,61705.0,0.001]
[1722674364621,0.27983324,61706.0,61705.0,0.01286996]
[1722674364823,0.27983324,61706.0,61705.0,0.002]
[1722674365024,0.27983324,61706.0,61705.0,0.01386996]
[1722674365173,0.27983324,61706.0,61705.0,0.002]
[1722674365374,0.27983324,61706.0,61705.0,0.01386996]
[1722674365646,0.27983324,61706.0,61705.0,0.002]
[1722674365843,0.27983324,61706.0,61705.0,0.01386996]
[1722674367885,0.15828924,61706.0,61705.0,0.01386996]
[1722674369916,0.27983324,61706.0,61705.0,0.01386996]
[1722674370324,0.27983324,61706.0,61705.0,0.002]
[1722674370543,0.27983324,61706.0,61705.0,0.01385302]
[1722674370753,0.27983324,61706.0,61705.0,0.002]
[1722674370962,0.27983324,61706.0,61705.0,0.01385302]
[1722674371161,0.27983324,61706.0,61705.0,0.002]
[1722674371376,0.27983324,61706.0,61705.0,0.01385302]
[1722674371587,0.27983324,61706.0,61705.0,0.001]
[1722674371811,0.27983324,61706.0,61705.0,0.01185302]
[1722674372016,0.27983324,61706.0,61702.0,0.121551]
[1722674372239,0.27983324,61706.0,61705.0,0.01185302]
[1722674372687,0.27983324,61706.0,61702.0,0.121551]
[1722674372899,0.27983324,61706.0,61705.0,0.01185302]
[1722674373102,0.27983324,61706.0,61702.0,0.121551]
[1722674373324,0.27983324,61706.0,61705.0,0.01185302]
[1722674373548,0.27983324,61706.0,61702.0,0.121551]
[1722674373758,0.15828924,61706.0,61705.0,0.01185302]
[1722674373978,0.27983324,61706.0,61701.0,0.121553]
[1722674374197,0.27983324,61706.0,61705.0,0.01185302]
[1722674374418,0.27983324,61706.0,61701.0,0.121553]
[1722674374620,0.27983324,61706.0,61705.0,0.01185302]
[1722674374824,0.27983324,61706.0,61701.0,0.121553]
[1722674375000,0.27983324,61706.0,61702.0,0.01185302]
[1722674375238,0.27983324,61706.0,61701.0,0.121553]
[1722674375440,0.27983324,61706.0,61703.0,0.01185302]
[1722674375573,0.121546,61705.0,61701.0,0.121553]
[1722674375808,0.15745924,61704.0,61702.0,0.01185302]
[1722674376024,0.15745924,61704.0,61701.0,0.121553]
[1722674376223,0.15745924,61704.0,61702.0,0.01185302]
[1722674376655,0.15745924,61704.0,61703.0,0.01185302]
[1722674378583,0.15745924,61704.0,61703.0,0.01385302]
[1722674379227,0.15745924,61704.0,61703.0,0.01485302]
[1722674379577,0.15745924,61704.0,61703.0,0.01385302]
[1722674380034,0.15745924,61704.0,61703.0,0.01585302]
[1722674381449,0.15745924,61704.0,61703.0,0.13740302]
[1722674383575,0.15745924,61704.0,61703.0,0.38050302]
[1722674385379,0.15745924,61704.0,61703.0,0.51690302]
[1722674386401,0.15745924,61704.0,61703.0,0.46050302]
[1722674388030,0.15745924,61704.0,61703.0,0.47051008]
[1722674390599,0.15745924,61704.0,61703.0,0.02586008]
[1722674391466,0.15745924,61704.0,61703.0,0.02186008]
[1722674392733,0.15745924,61704.0,61703.0,0.02286008]
[1722674392941,0.15745924,61704.0,61703.0,0.02386008]
[1722674393154,0.15745924,61704.0,61703.0,0.13540302]
[1722674393368,0.15828924,61704.0,61703.0,0.01385302]
[1722674394393,0.15828924,61704.0,61703.0,0.01285302]
[1722674394594,0.15828924,61704.0,61703.0,0.01185302]
[1722674394809,0.15828924,61704.0,61703.0,0.01585302]
[1722674395207,0.15828924,61704.0,61703.0,0.01185302]
[1722674395408,0.15828924,61704.0,61703.0,0.01585302]
[1722674395623,0.15828924,61704.0,61703.0,0.01885302]
[1722674396818,0.88372924,61704.0,61703.0,0.01885302]
[1722674397169,0.64063324,61704.0,61703.0,0.007]
[1722674397371,0.68849828,61704.0,61703.0,0.007]
[1722674397496,0.68849828,61704.0,61703.0,0.01885059]
[1722674397900,0.68849828,61704.0,61703.0,0.007]
[1722674398108,0.63993324,61704.0,61703.0,0.007]
[1722674398305,0.12155,61703.0,61702.0,0.0101119]
[1722674398493,0.32760572,61703.0,61702.0,0.0101119]
[1722674398697,0.121552,61702.0,61699.0,0.101913]
[1722674398894,0.15745924,61701.0,61700.0,0.01186064]
[1722674399096,0.15745924,61701.0,61700.0,0.23341564]
[1722674399326,0.15745924,61701.0,61700.0,0.13341564]
[1722674399541,0.15745924,61701.0,61700.0,0.23341564]
[1722674400734,0.15745924,61701.0,61700.0,0.11186064]
[1722674400944,0.15745924,61701.0,61700.0,0.01186064]
[1722674401144,0.27901224,61701.0,61700.0,0.01586064]
[1722674401548,0.15745924,61701.0,61700.0,0.01586064]
[1722674401759,0.15745924,61701.0,61700.0,0.12086064]
[1722674401760,0.15726417,61701.0,61700.0,0.12086064]
[1722674402059,0.15726417,61701.0,61700.0,0.01186064]
[1722674402283,0.15726417,61701.0,61700.0,0.11386064]
[1722674402488,0.15726417,61701.0,61700.0,0.11286064]
[1722674402890,0.15726417,61701.0,61700.0,0.11386064]
[1722674403096,0.15726417,61701.0,61700.0,0.35697164]
[1722674403310,0.15726417,61701.0,61700.0,0.47852664]
[1722674403950,0.00083,61704.0,61703.0,0.36465]
[1722674404155,0.15828924,61704.0,61703.0,0.43290669]
[1722674404354,0.15828924,61704.0,61703.0,0.37650669]
[1722674408448,0.15828924,61704.0,61703.0,0.01185669]
[1722674408624,0.21958924,61704.0,61703.0,0.13340669]
[1722674408852,0.15828924,61704.0,61703.0,0.36465]
[1722674409061,0.15828924,61704.0,61703.0,0.37650669]
[1722674416743,0.15828924,61704.0,61703.0,0.01185669]
[1722674416948,0.28697506,61704.0,61703.0,0.01185669]
[1722674417151,0.28697506,61704.0,61701.0,0.00157439]
[1722674417152,0.306203,61702.0,61701.0,0.00157439]
[1722674417328,0.121555,61700.0,61699.0,0.001913]
[1722674417466,0.73148967,61700.0,61699.0,0.001913]
[1722674417667,1.03800757,61700.0,61699.0,0.001913]
[1722674417892,1.24771857,61700.0,61699.0,0.001913]
[1722674418097,1.18361131,61700.0,61699.0,0.001913]
[1722674418296,1.03800757,61700.0,61699.0,0.001913]
[1722674419514,1.03800757,61700.0,61699.0,0.002913]
[1722674420170,1.04000757,61700.0,61699.0,0.003913]
[1722674420527,1.05360252,61700.0,61699.0,0.003913]
[1722674420731,0.96683624,61700.0,61699.0,0.003913]
[1722674420929,1.05387235,61700.0,61699.0,0.003913]
[1722674421179,1.17512935,61700.0,61699.0,0.003913]
[1722674421799,0.60823788,61700.0,61699.0,0.003913]
[1722674421974,0.38969535,61700.0,61699.0,0.003913]
[1722674422196,0.38969535,61700.0,61699.0,0.12547]
[1722674422328,0.22255924,61700.0,61699.0,0.003913]
[1722674422536,0.15945924,61700.0,61699.0,0.0158682]
[1722674422737,0.15945924,61700.0,61699.0,0.368585]
[1722674422957,0.15945924,61700.0,61699.0,0.5248402]
[1722674423768,0.15945924,61700.0,61699.0,0.7679552]
[1722674423972,0.002,61700.0,61699.0,1.0110702]
[1722674424775,0.00083,61704.0,61703.0,0.60775]
[1722674425040,0.15828924,61704.0,61703.0,0.60775]
[1722674425372,0.15828924,61704.0,61703.0,0.6197052]
[1722674425577,0.15828924,61704.0,61703.0,0.3766052]
[1722674425980,0.15828924,61704.0,61703.0,0.6197052]
[1722674427226,0.15828924,61704.0,61703.0,0.6207052]
[1722674427506,0.16228924,61704.0,61703.0,0.6217052]
[1722674430999,0.16228924,61704.0,61703.0,0.3786052]
[1722674431203,0.16228924,61704.0,61703.0,0.6217052]
[1722674431512,0.16228924,61704.0,61703.0,0.3786052]
[1722674432157,0.16228924,61704.0,61703.0,0.0139552]
[1722674432158,0.43033724,61704.0,61703.0,0.0139552]
[1722674432368,0.67343324,61704.0,61703.0,0.002]
[1722674432569,1.32029498,61704.0,61703.0,0.002]
[1722674432788,1.34457379,61704.0,61703.0,0.002]
[1722674432998,1.24761056,61704.0,61703.0,0.002]
[1722674433410,1.34450932,61704.0,61703.0,0.002]
[1722674433611,1.34450932,61704.0,61699.0,0.001913]
[1722674433612,1.132688,61700.0,61699.0,0.001913]
[1722674433848,1.37813256,61700.0,61699.0,0.001913]
[1722674434060,1.54643518,61700.0,61699.0,0.001913]
[1722674434268,1.40113256,61700.0,61699.0,0.001913]
[1722674434476,1.31314724,61700.0,61699.0,0.001913]
[1722674434682,1.55687652,61700.0,61699.0,0.001913]
[1722674434887,1.55687652,61700.0,61699.0,0.002913]
[1722674435121,1.4135739,61700.0,61699.0,0.002913]
[1722674435750,1.4135739,61700.0,61699.0,0.003913]
[1722674435751,1.4225739,61700.0,61699.0,0.003913]
[1722674435951,1.4125739,61700.0,61699.0,0.003913]
[1722674436150,1.4135739,61700.0,61699.0,0.002913]
[1722674436615,1.4225739,61700.0,61699.0,0.003913]
[1722674440804,1.4125739,61700.0,61699.0,0.003913]
[1722674441522,1.53343977,61700.0,61699.0,0.003913]
[1722674441743,1.53654388,61700.0,61699.0,0.003913]
[1722674442149,1.53646072,61700.0,61699.0,0.003913]
[1722674442993,0.76843872,61700.0,61699.0,0.003913]
[1722674443205,0.16845924,61700.0,61699.0,0.12547]
[1722674443422,0.16845924,61700.0,61699.0,0.368585]
[1722674443769,0.16845924,61700.0,61699.0,0.68861543]
[1722674443952,0.15945924,61700.0,61699.0,0.68761543]
[1722674444479,0.15745924,61700.0,61699.0,0.44350043]
[1722674444653,0.15945924,61700.0,61699.0,0.68661543]
[1722674445217,0.16145924,61700.0,61699.0,0.68661543]
[1722674445417,0.16145924,61700.0,61699.0,0.44350043]
[1722674446009,0.16145924,61700.0,61699.0,0.68661543]
[1722674449090,0.16145924,61700.0,61699.0,0.44350043]
[1722674452657,0.16145924,61700.0,61699.0,0.37720043]
[1722674457215,0.16145924,61700.0,61699.0,0.13408543]
[1722674460424,0.16145924,61700.0,61699.0,0.01252843]
[1722674460425,0.28301424,61700.0,61699.0,0.01252843]
[1722674460634,0.44651424,61700.0,61699.0,0.01252843]
[1722674460848,0.44651424,61700.0,61699.0,0.001913]
[1722674460849,1.10438103,61700.0,61699.0,0.001913]
[1722674461052,1.36166907,61700.0,61699.0,0.001913]
[1722674461408,1.26496093,61700.0,61699.0,0.001913]
[1722674461950,1.36184236,61700.0,61699.0,0.001913]
[1722674462138,1.26514158,61700.0,61699.0,0.001913]
[1722674462294,1.31325859,61700.0,61699.0,0.001913]
[1722674462499,1.33743609,61700.0,61699.0,0.001913]
[1722674462678,1.26490657,61700.0,61699.0,0.001913]
[1722674463701,1.33743071,61700.0,61699.0,0.001913]
[1722674463901,1.26490657,61700.0,61699.0,0.001913]
[1722674464103,1.88776951,61700.0,61699.0,1e-06]
[1722674464310,2.41824171,61700.0,61699.0,1e-06]
[1722674464511,1.021528,61690.0,61689.0,0.02]
[1722674464708,2.24206335,61690.0,61689.0,0.02]
[1722674464916,2.22125852,61690.0,61689.0,0.02]
[1722674465342,2.22283487,61690.0,61689.0,0.02]
[1722674465545,1.90093193,61690.0,61689.0,0.02]
[1722674466010,1.90493193,61690.0,61689.0,0.02]
[1722674466639,1.92489186,61690.0,61689.0,0.02]
[1722674467121,1.92482781,61690.0,61689.0,0.02]
[1722674467496,1.78001204,61690.0,61689.0,0.02]
[1722674468027,1.78301204,61690.0,61689.0,0.02]
[1722674468854,1.78250347,61690.0,61689.0,0.02]
[1722674469389,1.90696531,61690.0,61689.0,0.02]
[1722674469596,1.78250347,61690.0,61689.0,0.02]
[1722674469805,1.78250347,61690.0,61670.0,0.000913]
[1722674469806,1.052165,61680.0,61670.0,0.000913]
[1722674469947,2.57062141,61680.0,61679.0,1e-06]
[1722674470155,2.93681141,61680.0,61679.0,1e-06]
[1722674470533,3.05724736,61680.0,61679.0,1e-06]
[1722674470885,2.93681141,61680.0,61679.0,1e-06]
[1722674471298,2.93681141,61680.0,61679.0,0.001001]
[1722674471299,2.94981141,61680.0,61679.0,0.001001]
[1722674471526,3.0461118,61680.0,61679.0,0.001001]
[1722674471945,2.87105947,61680.0,61679.0,0.001001]
[1722674472076,2.62786947,61680.0,61679.0,0.001001]
[1722674472277,2.45697416,61680.0,61679.0,0.001001]
[1722674472486,1.79959416,61680.0,61679.0,0.001001]
[1722674472696,1.80981566,61680.0,61679.0,0.001001]
[1722674473054,1.69733868,61680.0,61679.0,0.001001]
[1722674474221,1.72033868,61680.0,61679.0,0.001001]
[1722674476272,1.73033868,61680.0,61679.0,0.001001]
[1722674476691,1.72033868,61680.0,61679.0,0.001001]
[1722674477547,1.14462424,61680.0,61679.0,0.001001]
[1722674477673,0.90143424,61680.0,61679.0,0.001001]
[1722674478103,1.14462424,61680.0,61679.0,0.001001]
[1722674478505,1.15462424,61680.0,61679.0,0.001001]
[1722674478731,1.14462424,61680.0,61679.0,0.001001]
[1722674482952,0.80143424,61680.0,61679.0,0.001001]
[1722674484706,0.80143424,61680.0,61679.0,0.064701]
[1722674484707,0.29205424,61680.0,61679.0,0.064701]
[1722674484883,0.17045924,61680.0,61679.0,0.064701]
[1722674485084,0.17045924,61680.0,61679.0,0.07991201]
[1722674485315,0.17045924,61680.0,61679.0,0.064701]
[1722674485503,0.17045924,61680.0,61679.0,0.07991201]
[1722674488233,0.29205424,61680.0,61679.0,0.07991201]
[1722674488384,0.17045924,61680.0,61679.0,0.07991201]
[1722674489209,0.29205424,61680.0,61679.0,0.07991201]
[1722674489407,0.53524424,61680.0,61679.0,0.064701]
[1722674489687,0.53524424,61680.0,61679.0,0.07988557]
[1722674491421,0.53524424,61680.0,61679.0,0.064701]
[1722674491622,0.77843424,61680.0,61679.0,0.001001]
[1722674491827,1.13472749,61680.0,61679.0,0.001001]
[1722674492461,1.13555749,61680.0,61679.0,0.001001]
[1722674493247,1.13559117,61680.0,61679.0,0.001001]
[1722674493678,1.04545424,61680.0,61679.0,0.001001]
[1722674493895,1.13563664,61680.0,61679.0,0.001001]
[1722674494110,1.37882664,61680.0,61679.0,0.001001]
[1722674494499,1.53302664,61680.0,61679.0,0.001001]
[1722674494882,1.65842558,61680.0,61679.0,0.001001]
[1722674495083,1.92161558,61680.0,61679.0,0.001001]
[1722674495292,0.01,61671.0,61670.0,0.000913]
[1722674495516,1.56717624,61671.0,61670.0,0.000913]
[1722674495717,0.608222,61655.0,61654.0,0.000913]
[1722674495919,1.09915264,61655.0,61654.0,0.000913]
[1722674496119,1.37544164,61655.0,61654.0,0.000913]
[1722674496519,1.47544164,61655.0,61654.0,0.000913]
[1722674496738,1.47577354,61655.0,61654.0,0.000913]
[1722674496948,1.86456997,61655.0,61654.0,0.000913]
[1722674497153,1.73906254,61655.0,61654.0,0.000913]
[1722674497356,1.49577354,61655.0,61654.0,0.000913]
[1722674497575,1.73906254,61655.0,61654.0,0.000913]
[1722674497779,1.86429957,61655.0,61654.0,0.000913]
[1722674497971,1.87829957,61655.0,61654.0,0.000913]
[1722674498170,1.89129957,61655.0,61654.0,0.000913]
[1722674498531,1.87729957,61655.0,61654.0,0.000913]
[1722674498700,1.52277354,61655.0,61654.0,0.000913]
[1722674498908,1.53677354,61655.0,61654.0,0.000913]
[1722674499871,1.54678964,61655.0,61654.0,0.000913]
[1722674500097,1.54669368,61655.0,61654.0,0.000913]
[1722674502651,1.53669368,61655.0,61654.0,0.000913]
[1722674502896,1.51669368,61655.0,61654.0,0.000913]
[1722674504035,1.42627534,61655.0,61654.0,0.000913]
[1722674504278,1.51734194,61655.0,61654.0,0.000913]
[1722674505746,1.52734194,61655.0,61654.0,0.000913]
[1722674506388,1.51734194,61655.0,61654.0,0.000913]
[1722674507094,1.27405294,61655.0,61654.0,0.000913]
[1722674507294,1.18948434,61655.0,61654.0,0.000913]
[1722674507493,1.28049961,61655.0,61654.0,0.000913]
[1722674507851,1.18948434,61655.0,61654.0,0.000913]
[1722674508642,0.81317924,61655.0,61654.0,0.000913]
[1722674509266,0.80668124,61655.0,61654.0,0.000913]
[1722674509464,0.77968124,61655.0,61654.0,0.000913]
[1722674509670,1.02297024,61655.0,61654.0,0.000913]
[1722674509869,1.03697024,61655.0,61654.0,0.000913]
[1722674510049,1.05997024,61655.0,61654.0,0.000913]
[1722674510469,0.80268124,61655.0,61654.0,0.000913]
[1722674510651,0.81668124,61655.0,61654.0,0.000913]
[1722674512594,0.81237675,61655.0,61654.0,0.000913]
[1722674514165,0.56908775,61655.0,61654.0,0.000913]
[1722674514348,0.32579875,61655.0,61654.0,0.078413]
[1722674514553,0.18545924,61655.0,61654.0,0.144613]
[1722674514844,0.18545924,61655.0,61654.0,0.266259]
[1722674515052,0.18545924,61655.0,61654.0,0.16006018]
[1722674515400,0.17145924,61655.0,61654.0,0.16006018]
[1722674515647,0.16645924,61655.0,61654.0,0.16006018]
[1722674516029,0.17545924,61655.0,61654.0,0.16106018]
[1722674516234,0.17545924,61655.0,61654.0,0.40435318]
[1722674516413,0.17545924,61655.0,61654.0,0.52599918]
[1722674517494,0.17545924,61655.0,61654.0,0.28270618]
[1722674518649,0.17545924,61655.0,61654.0,0.52599918]
[1722674518875,0.17545924,61655.0,61654.0,0.76929218]
[1722674519444,0.17545924,61655.0,61654.0,0.52599918]
[1722674520588,0.17545924,61655.0,61654.0,0.76929218]
[1722674520808,0.17545924,61655.0,61654.0,0.52599918]
[1722674521011,0.17545924,61655.0,61654.0,0.76929218]
[1722674521678,0.018,61655.0,61654.0,1.01258518]
[1722674521879,0.018,61655.0,61654.0,1.12258518]
[1722674522089,0.122425,61680.0,61654.0,1.38787818]
[1722674522286,0.15745924,61679.0,61676.0,0.1437]
[1722674522483,0.121599,61678.0,61676.0,0.1437]
[1722674522834,0.00083,61680.0,61676.0,0.1437]
[1722674522835,0.15745924,61677.0,61676.0,0.1437]
[1722674523348,0.15745924,61677.0,61676.0,0.508509]
[1722674523986,0.15745924,61677.0,61676.0,0.751715]
[1722674524194,0.15745924,61677.0,61676.0,0.508509]
[1722674525337,0.15745924,61677.0,61676.0,0.517509]
[1722674525551,0.15928924,61677.0,61676.0,0.515509]
[1722674525902,0.16028924,61677.0,61676.0,0.522509]
[1722674526851,0.16028924,61677.0,61676.0,0.765715]
[1722674527809,0.00283,61677.0,61676.0,0.765715]
[1722674533327,0.00283,61677.0,61676.0,0.77328288]
[1722674534698,0.00283,61677.0,61676.0,1.02648888]
[1722674535478,0.00283,61677.0,61676.0,1.18748888]
[1722674535709,0.00283,61677.0,61676.0,1.28948888]
[1722674535913,0.00283,61677.0,61676.0,1.26748888]
[1722674536087,0.00283,61677.0,61676.0,1.28748888]
[1722674536309,0.00283,61677.0,61676.0,1.26748888]
[1722674536493,0.00283,61677.0,61676.0,1.28748888]
[1722674537418,0.00283,61677.0,61676.0,1.28948888]
[1722674539666,0.00283,61677.0,61676.0,1.29966826]
[1722674541345,0.00283,61677.0,61676.0,1.54287426]
[1722674543014,0.00283,61677.0,61676.0,1.27766826]
[1722674543601,0.00283,61677.0,61676.0,1.52087426]
[1722674543799,0.00283,61677.0,61676.0,1.54087426]
[1722674544028,0.00283,61677.0,61676.0,1.29766826]
[1722674544329,0.00283,61677.0,61676.0,1.54087426]
[1722674545091,0.00283,61677.0,61676.0,1.27766826]
[1722674545634,0.00283,61677.0,61676.0,1.54287426]
[1722674545829,0.00283,61677.0,61676.0,1.27636826]
[1722674549061,0.00283,61677.0,61676.0,1.29836826]
[1722674550062,0.00283,61677.0,61676.0,1.27636826]
[1722674550549,0.00283,61677.0,61676.0,1.13536826]
[1722674557987,0.00283,61677.0,61676.0,1.24686472]
[1722674558295,0.00283,61677.0,61676.0,1.13536826]
[1722674559036,0.00283,61677.0,61676.0,1.24683801]
[1722674560029,0.00283,61677.0,61676.0,1.13536826]